[Event "FIDE Grand Swiss 2023"]
[Site "Villa Marina, Douglas, Isle of Man"]
[Date "2023.10.28"]
[Round "4.27"]
[White "Nihal, Sarin"]
[Black "Ter-Sahakyan, Samvel"]
[Result "1-0"]
[WhiteElo "2694"]
[BlackElo "2618"]
[EventDate "2023.10.25"]
[ECO "B50"]
[PlyCount "95"]
[BlackFideId "13302531"]
[TimeControl "40/100 + 20/50 + 15 + 30s/move"]
[WhiteFideId "25092340"]

1.e4 {[%clk 01:40:50] [%emt 00:00:09]} 1...c5 {[%clk 01:40:55] [%emt 00:00:06]} 
2.Nf3 {[%clk 01:41:11] [%emt 00:00:09]} 2...d6 {[%clk 01:39:03] [%emt 00:02:22]} 
3.Nc3 {[%clk 01:41:34] [%emt 00:00:07]} 3...Nf6 {[%clk 01:39:27] [%emt
00:00:07]} 4.Bb5+ {[%clk 01:41:59] [%emt 00:00:05]} 4...Bd7 {[%clk 01:37:30]
[%emt 00:02:27]} 5.Qe2 {[%clk 01:41:50] [%emt 00:00:38]} 5...a6 {[%clk 01:21:31]
[%emt 00:16:30]} 6.Bxd7+ {[%clk 01:42:09] [%emt 00:00:10]} 6...Nbxd7 {[%clk
01:21:45] [%emt 00:00:18]} 7.O-O {[%clk 01:42:05] [%emt 00:00:32]} 7...e6 
{[%clk 01:21:57] [%emt 00:00:18]} 8.d3 {[%clk 01:41:23] [%emt 00:01:10]} 8...b5 
{[%clk 01:08:09] [%emt 00:14:21]} 9.a4 {[%clk 01:40:38] [%emt 00:01:15]} 9...b4 
{[%clk 01:07:26] [%emt 00:01:13]} 10.Nd1 {[%clk 01:41:01] [%emt 00:00:07]} 
10...Be7 {[%clk 01:07:17] [%emt 00:00:39]} 11.b3 {[%clk 01:32:26] [%emt
00:09:04]} 11...O-O {[%clk 01:06:01] [%emt 00:01:47]} 12.Bb2 {[%clk 01:27:44]
[%emt 00:05:12]} 12...d5 {[%clk 01:02:25] [%emt 00:04:07]} 13.Nd2 {[%clk
01:23:22] [%emt 00:04:51]} 13...Nb8 {[%clk 00:56:45] [%emt 00:06:11]} 14.f4 
{[%clk 01:16:13] [%emt 00:07:39]} 14...Nc6 {[%clk 00:56:51] [%emt 00:00:24]} 
15.Ne3 {[%clk 01:15:47] [%emt 00:00:54]} 15...Nd4 {[%clk 00:50:10] [%emt
00:07:12]} 16.Qf2 {[%clk 01:13:35] [%emt 00:02:42]} 16...Rc8 {[%clk 00:44:08]
[%emt 00:06:33]} 17.Rad1 {[%clk 01:08:39] [%emt 00:05:23]} 17...Qc7 {[%clk
00:40:25] [%emt 00:04:15]} 18.Rde1 {[%clk 00:49:53] [%emt 00:19:15]} 18...Rfd8 
{[%clk 00:35:09] [%emt 00:05:48]} 19.Kh1 {[%clk 00:45:57] [%emt 00:04:24]} 
19...Qc6 {[%clk 00:28:49] [%emt 00:06:52]} 20.exd5 {[%clk 00:45:08] [%emt
00:01:20]} 20...Nxd5 {[%clk 00:28:24] [%emt 00:00:56]} 21.Bxd4 {[%clk 00:42:52]
[%emt 00:02:46]} 21...cxd4 {[%clk 00:28:44] [%emt 00:00:10]} 22.Nxd5 {[%clk
00:43:18] [%emt 00:00:03]} 22...Rxd5 {[%clk 00:29:01] [%emt 00:00:13]} 23.Nc4 
{[%clk 00:43:42] [%emt 00:00:06]} 23...Bf6 {[%clk 00:28:03] [%emt 00:01:28]} 
24.Qf3 {[%clk 00:38:43] [%emt 00:05:28]} 24...h5 {[%clk 00:27:51] [%emt
00:00:43]} 25.g3 {[%clk 00:37:42] [%emt 00:01:31]} 25...g6 {[%clk 00:26:36]
[%emt 00:01:46]} 26.Kg2 {[%clk 00:37:46] [%emt 00:00:24]} 26...Kg7 {[%clk
00:26:37] [%emt 00:00:30]} 27.h3 {[%clk 00:38:09] [%emt 00:00:06]} 27...Qc7 
{[%clk 00:23:17] [%emt 00:03:51]} 28.Qe4 {[%clk 00:34:56] [%emt 00:03:42]} 
28...Qd8 {[%clk 00:21:35] [%emt 00:02:13]} 29.Rf3 {[%clk 00:33:48] [%emt
00:01:37]} 29...Rcc5 {[%clk 00:20:56] [%emt 00:01:10]} 30.Ref1 {[%clk 00:32:11]
[%emt 00:02:06]} 30...Qc7 {[%clk 00:17:01] [%emt 00:04:25]} 31.R1f2 {[%clk
00:31:37] [%emt 00:01:02]} 31...Rd8 {[%clk 00:15:23] [%emt 00:02:09]} 32.Kf1 
{[%clk 00:31:30] [%emt 00:00:37]} 32...Rh8 {[%clk 00:13:29] [%emt 00:02:24]} 
33.Ke2 {[%clk 00:30:02] [%emt 00:01:57]} 33...Qd7 {[%clk 00:13:28] [%emt
00:00:32]} 34.Kd1 {[%clk 00:28:16] [%emt 00:02:14]} 34...Qc7 {[%clk 00:09:10]
[%emt 00:04:48]} 35.Kc1 {[%clk 00:28:25] [%emt 00:00:22]} 35...Qd7 {[%clk
00:09:35] [%emt 00:00:06]} 36.Kb1 {[%clk 00:28:36] [%emt 00:00:19]} 36...Qc7 
{[%clk 00:08:11] [%emt 00:01:54]} 37.Rf1 {[%clk 00:28:27] [%emt 00:00:37]} 
37...Qd7 {[%clk 00:07:57] [%emt 00:00:44]} 38.Qe1 {[%clk 00:26:58] [%emt
00:01:58]} 38...a5 {[%clk 00:05:47] [%emt 00:02:43]} 39.Qd1 {[%clk 00:25:03]
[%emt 00:02:24]} 39...Qc7 {[%clk 00:05:04] [%emt 00:01:13]} 40.Qe2 {[%clk
00:23:39] [%emt 00:01:53]} 40...Qc6 {[%clk 00:03:43] [%emt 00:01:52]} 41.g4 
{[%clk 00:15:39] [%emt 00:08:29]} 41...Qc7 {[%clk 00:46:05] [%emt 00:08:09]} 
42.Qd1 {[%clk 00:55:28] [%emt 00:10:40]} 42...hxg4 {[%clk 00:29:02] [%emt
00:17:34]} 43.hxg4 {[%clk 00:55:38] [%emt 00:00:19]} 43...Rh2 {[%clk 00:29:06]
[%emt 00:00:27]} 44.g5 {[%clk 00:47:29] [%emt 00:08:39]} 44...Bd8 {[%clk
00:26:16] [%emt 00:03:21]} 45.Rh1 {[%clk 00:47:31] [%emt 00:00:27]} 45...Rxh1 
{[%clk 00:25:50] [%emt 00:00:57]} 46.Qxh1 {[%clk 00:47:35] [%emt 00:00:26]} 
46...Kf8 {[%clk 00:26:19]} 47.Qh8+ {[%clk 00:44:55] [%emt 00:03:11]} 47...Ke7 
{[%clk 00:26:48]} 48.Qxd4 {[%clk 00:45:16] [%emt 00:00:09]} 1-0

[Event "FIDE Grand Swiss 2023"]
[Site "Villa Marina, Douglas, Isle of Man"]
[Date "2023.10.28"]
[Round "4.28"]
[White "Sadhwani, Raunak"]
[Black "Xiong, Jeffery"]
[Result "1/2-1/2"]
[WhiteElo "2641"]
[BlackElo "2693"]
[EventDate "2023.10.25"]
[ECO "C42"]
[PlyCount "61"]
[BlackFideId "2047640"]
[TimeControl "40/100 + 20/50 + 15 + 30s/move"]
[WhiteFideId "35093487"]

1.e4 {[%clk 01:40:57] [%emt 00:00:02]} 1...e5 {[%clk 01:40:56] [%emt 00:00:03]} 
2.Nf3 {[%clk 01:41:22] [%emt 00:00:06]} 2...Nf6 {[%clk 01:41:07] [%emt
00:00:19]} 3.Nxe5 {[%clk 01:41:42] [%emt 00:00:10]} 3...d6 {[%clk 01:41:34]
[%emt 00:00:04]} 4.Nf3 {[%clk 01:42:06] [%emt 00:00:05]} 4...Nxe4 {[%clk
01:41:59] [%emt 00:00:05]} 5.d4 {[%clk 01:42:32] [%emt 00:00:04]} 5...d5 {[%clk
01:42:13] [%emt 00:00:16]} 6.Bd3 {[%clk 01:42:55] [%emt 00:00:07]} 6...Be7 
{[%clk 01:42:26] [%emt 00:00:17]} 7.O-O {[%clk 01:43:15] [%emt 00:00:11]} 
7...Bf5 {[%clk 01:42:50] [%emt 00:00:06]} 8.Re1 {[%clk 01:43:23] [%emt
00:00:22]} 8...O-O {[%clk 01:43:14] [%emt 00:00:05]} 9.Nbd2 {[%clk 01:43:40]
[%emt 00:00:14]} 9...Nd6 {[%clk 01:43:37] [%emt 00:00:07]} 10.Nf1 {[%clk
01:43:59] [%emt 00:00:11]} 10...Bg6 {[%clk 01:43:16] [%emt 00:00:51]} 11.Ne5 
{[%clk 01:44:23] [%emt 00:00:06]} 11...Bxd3 {[%clk 01:43:38] [%emt 00:00:08]} 
12.Nxd3 {[%clk 01:44:49] [%emt 00:00:04]} 12...Re8 {[%clk 01:39:18] [%emt
00:04:49]} 13.Bf4 {[%clk 01:44:32] [%emt 00:00:46]} 13...Nd7 {[%clk 01:38:28]
[%emt 00:01:20]} 14.c3 {[%clk 01:44:51] [%emt 00:00:12]} 14...c6 {[%clk
01:35:49] [%emt 00:03:09]} 15.Qb3 {[%clk 01:43:22] [%emt 00:02:00]} 15...Qc7 
{[%clk 01:18:18] [%emt 00:18:00]} 16.Qa3 {[%clk 01:33:05] [%emt 00:10:47]} 
16...Bf8 {[%clk 01:04:27] [%emt 00:14:20]} 17.Rxe8 {[%clk 01:31:52] [%emt
00:01:44]} 17...Nxe8 {[%clk 01:04:34] [%emt 00:00:23]} 18.Bxc7 {[%clk 01:30:32]
[%emt 00:01:50]} 18...Bxa3 {[%clk 01:05:01] [%emt 00:00:03]} 19.Bg3 {[%clk
01:30:44] [%emt 00:00:17]} 19...Bf8 {[%clk 01:03:06] [%emt 00:02:24]} 20.a4 
{[%clk 01:30:06] [%emt 00:01:09]} 20...a5 {[%clk 00:54:53] [%emt 00:08:43]} 
21.Ne3 {[%clk 01:30:19] [%emt 00:00:18]} 21...Nd6 {[%clk 00:54:37] [%emt
00:00:45]} 22.f3 {[%clk 01:30:25] [%emt 00:00:24]} 22...Nc4 {[%clk 00:42:47]
[%emt 00:12:19]} 23.Kf2 {[%clk 01:30:29] [%emt 00:00:27]} 23...Nxe3 {[%clk
00:41:55] [%emt 00:01:22]} 24.Kxe3 {[%clk 01:30:47] [%emt 00:00:13]} 24...f6 
{[%clk 00:42:16] [%emt 00:00:08]} 25.Kd2 {[%clk 01:30:50] [%emt 00:00:27]} 
25...Kf7 {[%clk 00:42:31] [%emt 00:00:15]} 26.h4 {[%clk 01:30:33] [%emt
00:00:48]} 26...g6 {[%clk 00:42:17] [%emt 00:00:44]} 27.Bc7 {[%clk 01:30:46]
[%emt 00:00:17]} 27...Ra7 {[%clk 00:42:13] [%emt 00:00:34]} 28.Bf4 {[%clk
01:30:36] [%emt 00:00:39]} 28...Ra8 {[%clk 00:40:32] [%emt 00:02:12]} 29.Bc7 
{[%clk 01:30:53] [%emt 00:00:13]} 29...Ra7 {[%clk 00:40:57] [%emt 00:00:06]} 
30.Bf4 {[%clk 01:31:18] [%emt 00:00:04]} 30...Ra8 {[%clk 00:41:21] [%emt
00:00:05]} 31.Bc7 {[%clk 01:31:45] [%emt 00:00:03]} 1/2-1/2

[Event "FIDE Grand Swiss 2023"]
[Site "Villa Marina, Douglas, Isle of Man"]
[Date "2023.10.28"]
[Round "4.29"]
[White "Navara, David"]
[Black "Durarbayli, Vasif"]
[Result "1/2-1/2"]
[WhiteElo "2689"]
[BlackElo "2625"]
[EventDate "2023.10.25"]
[ECO "D12"]
[PlyCount "102"]
[BlackFideId "13402935"]
[TimeControl "40/100 + 20/50 + 15 + 30s/move"]
[WhiteFideId "309095"]

1.d4 {[%clk 01:40:57] [%emt 00:00:02]} 1...d5 {[%emt 00:00:20]} 2.c4 {[%clk
01:41:23]} 2...c6 {[%clk 01:41:07] [%emt 00:00:09]} 3.Nf3 {[%clk 01:41:47] [%emt
00:00:05]} 3...Nf6 {[%clk 01:41:25] [%emt 00:00:12]} 4.e3 {[%clk 01:42:12] [%emt
00:00:05]} 4...Bf5 {[%clk 01:41:43] [%emt 00:00:11]} 5.Nc3 {[%clk 01:42:37]
[%emt 00:00:06]} 5...e6 {[%clk 01:42:01] [%emt 00:00:12]} 6.Nh4 {[%clk 01:42:56]
[%emt 00:00:10]} 6...Be4 {[%clk 01:42:20] [%emt 00:00:12]} 7.f3 {[%clk 01:42:46]
[%emt 00:00:40]} 7...Bg6 {[%clk 01:42:29] [%emt 00:00:20]} 8.Bd2 {[%clk
01:41:27] [%emt 00:01:50]} 8...Be7 {[%clk 01:40:26] [%emt 00:02:33]} 9.Nxg6 
{[%clk 01:41:34] [%emt 00:00:23]} 9...hxg6 {[%clk 01:40:28] [%emt 00:00:29]} 
10.Qc2 {[%clk 01:41:47] [%emt 00:00:17]} 10...a5 {[%clk 01:40:36] [%emt
00:00:21]} 11.g3 {[%clk 01:35:37] [%emt 00:06:39]} 11...Na6 {[%clk 01:29:16]
[%emt 00:11:50]} 12.a3 {[%clk 01:30:33] [%emt 00:05:35]} 12...O-O {[%clk
01:19:14] [%emt 00:10:31]} 13.Kf2 {[%clk 01:24:13] [%emt 00:06:50]} 13...c5 
{[%clk 01:09:00] [%emt 00:10:45]} 14.dxc5 {[%clk 01:08:20] [%emt 00:16:23]} 
14...d4 {[%clk 01:01:29] [%emt 00:08:01]} 15.exd4 {[%clk 01:07:46] [%emt
00:01:04]} 15...Qxd4+ {[%clk 01:01:34] [%emt 00:00:25]} 16.Kg2 {[%clk 01:08:00]
[%emt 00:00:15]} 16...Bxc5 {[%clk 00:54:56] [%emt 00:07:09]} 17.Bg5 {[%clk
01:07:28] [%emt 00:01:01]} 17...Ba7 {[%clk 00:52:24] [%emt 00:03:02]} 18.Rd1 
{[%clk 01:02:33] [%emt 00:05:25]} 18...Qc5 {[%clk 00:52:09] [%emt 00:00:45]} 
19.Bxf6 {[%clk 01:00:08] [%emt 00:02:56]} 19...gxf6 {[%clk 00:51:47] [%emt
00:00:51]} 20.Ne4 {[%clk 01:00:29] [%emt 00:00:09]} 20...Qf5 {[%clk 00:43:25]
[%emt 00:08:52]} 21.Qc3 {[%clk 00:58:37] [%emt 00:02:22]} 21...Kg7 {[%clk
00:42:36] [%emt 00:01:19]} 22.b4 {[%clk 00:57:48] [%emt 00:01:20]} 22...axb4 
{[%clk 00:34:28] [%emt 00:08:37]} 23.axb4 {[%clk 00:57:59] [%emt 00:00:19]} 
23...Qe5 {[%clk 00:34:38] [%emt 00:00:19]} 24.Qxe5 {[%clk 00:47:27] [%emt
00:11:04]} 24...fxe5 {[%clk 00:35:02] [%emt 00:00:06]} 25.Rd7 {[%clk 00:47:00]
[%emt 00:00:56]} 25...Nxb4 {[%clk 00:31:13] [%emt 00:04:20]} 26.c5 {[%clk
00:47:09] [%emt 00:00:20]} 26...Nd5 {[%clk 00:27:21] [%emt 00:04:23]} 27.Rxb7 
{[%clk 00:42:56] [%emt 00:04:43]} 27...Bb8 {[%clk 00:21:23] [%emt 00:06:28]} 
28.h4 {[%clk 00:40:39] [%emt 00:02:46]} 28...Ra3 {[%clk 00:14:13] [%emt
00:07:41]} 29.Kh3 {[%clk 00:36:37] [%emt 00:04:31]} 29...Rxf3 {[%clk 00:07:45]
[%emt 00:06:59]} 30.Ng5 {[%clk 00:36:14] [%emt 00:00:52]} 30...Rf6 {[%clk
00:08:08] [%emt 00:00:08]} 31.Bc4 {[%clk 00:33:31] [%emt 00:03:13]} 31...e4 
{[%clk 00:07:58] [%emt 00:00:40]} 32.Rhb1 {[%clk 00:29:01] [%emt 00:05:00]} 
32...Be5 {[%clk 00:08:00] [%emt 00:00:27]} 33.Nxe6+ {[%clk 00:28:34] [%emt
00:00:57]} 33...Rxe6 {[%clk 00:08:24] [%emt 00:00:08]} 34.Bxd5 {[%clk 00:28:58]
[%emt 00:00:05]} 34...Ree8 {[%clk 00:07:20] [%emt 00:01:34]} 35.R1b4 {[%clk
00:21:15] [%emt 00:08:13]} 35...e3 {[%clk 00:06:52] [%emt 00:00:58]} 36.Re4 
{[%clk 00:21:32] [%emt 00:00:12]} 36...Bc7 {[%clk 00:05:32] [%emt 00:01:51]} 
37.Rxe8 {[%clk 00:14:36] [%emt 00:07:26]} 37...Rxe8 {[%clk 00:05:57] [%emt
00:00:06]} 38.Rxc7 {[%clk 00:14:58] [%emt 00:00:07]} 38...e2 {[%clk 00:05:53]
[%emt 00:00:34]} 39.Bxf7 {[%clk 00:15:22] [%emt 00:00:05]} 39...Kf8 {[%clk
00:01:51] [%emt 00:04:33]} 40.Bc4 {[%clk 00:14:38] [%emt 00:01:14]} 40...e1=Q 
{[%clk 00:02:13] [%emt 00:00:09]} 41.Rf7+ {[%clk 00:15:01] [%emt 00:00:06]} 
41...Kg8 {[%clk 00:02:41] [%emt 00:00:03]} 42.Re7+ {[%clk 00:14:28] [%emt
00:01:02]} 42...Kf8 {[%clk 00:01:31] [%emt 00:01:39]} 43.Rf7+ {[%clk 00:14:41]
[%emt 00:00:17]} 43...Kg8 {[%clk 00:01:14] [%emt 00:00:48]} 44.Re7+ {[%clk
00:14:06] [%emt 00:01:05]} 44...Kf8 {[%clk 00:01:38] [%emt 00:00:06]} 45.Rxe1 
{[%clk 00:14:30] [%emt 00:00:06]} 45...Rxe1 {[%clk 00:02:04] [%emt 00:00:05]} 
46.c6 {[%clk 00:14:29] [%emt 00:00:31]} 46...Rc1 {[%clk 00:02:28] [%emt
00:00:05]} 47.Bd5 {[%clk 00:14:54] [%emt 00:00:04]} 47...Rc5 {[%clk 00:02:54]
[%emt 00:00:05]} 48.Be4 {[%clk 00:15:19] [%emt 00:00:04]} 48...Rc4 {[%clk
00:03:20] [%emt 00:00:05]} 49.Bxg6 {[%clk 00:15:40] [%emt 00:00:08]} 49...Rxc6 
{[%clk 00:03:47] [%emt 00:00:03]} 50.Be4 {[%clk 00:16:02] [%emt 00:00:08]} 
50...Rc3 {[%clk 00:04:14] [%emt 00:00:03]} 51.Kg4 {[%clk 00:16:27] [%emt
00:00:05]} 51...Rxg3+ {[%clk 00:04:39] [%emt 00:00:05]} 1/2-1/2

[Event "FIDE Grand Swiss 2023"]
[Site "Villa Marina, Douglas, Isle of Man"]
[Date "2023.10.28"]
[Round "4.30"]
[White "Kuzubov, Yuriy"]
[Black "Sargissian, Gabriel"]
[Result "1-0"]
[WhiteElo "2625"]
[BlackElo "2686"]
[EventDate "2023.10.25"]
[ECO "D37"]
[PlyCount "87"]
[BlackFideId "13300881"]
[TimeControl "40/100 + 20/50 + 15 + 30s/move"]
[WhiteFideId "14112906"]

1.d4 {[%clk 01:40:56] [%emt 00:00:02]} 1...d5 {[%clk 01:40:18] [%emt 00:00:43]} 
2.c4 {[%clk 01:41:16] [%emt 00:00:09]} 2...e6 {[%clk 01:40:44] [%emt 00:00:05]} 
3.Nf3 {[%clk 01:41:31] [%emt 00:00:14]} 3...Nf6 {[%clk 01:41:10] [%emt
00:00:05]} 4.Nc3 {[%clk 01:41:53] [%emt 00:00:08]} 4...Be7 {[%clk 01:41:36]
[%emt 00:00:04]} 5.cxd5 {[%clk 01:41:42] [%emt 00:00:41]} 5...exd5 {[%clk
01:41:49] [%emt 00:00:18]} 6.Bf4 {[%clk 01:42:04] [%emt 00:00:06]} 6...c6 
{[%clk 01:38:52] [%emt 00:03:29]} 7.e3 {[%clk 01:42:13] [%emt 00:00:20]} 
7...Nh5 {[%clk 01:38:53] [%emt 00:00:29]} 8.Qc2 {[%clk 01:39:50] [%emt
00:02:53]} 8...Nxf4 {[%clk 01:36:36] [%emt 00:02:48]} 9.exf4 {[%clk 01:39:49]
[%emt 00:00:30]} 9...Bd6 {[%clk 01:34:51] [%emt 00:02:16]} 10.g3 {[%clk
01:39:57] [%emt 00:00:21]} 10...Nd7 {[%clk 01:33:48] [%emt 00:01:33]} 11.Bd3 
{[%clk 01:38:03] [%emt 00:02:24]} 11...Nf6 {[%clk 01:33:20] [%emt 00:00:58]} 
12.O-O-O {[%clk 01:27:15] [%emt 00:11:18]} 12...O-O {[%clk 01:32:27] [%emt
00:01:24]} 13.Ne5 {[%clk 01:27:38] [%emt 00:00:06]} 13...Qa5 {[%clk 01:16:45]
[%emt 00:16:13]} 14.Kb1 {[%clk 01:25:38] [%emt 00:02:29]} 14...Kh8 {[%clk
01:03:37] [%emt 00:13:38]} 15.f3 {[%clk 00:57:24] [%emt 00:28:44]} 15...Be6 
{[%clk 00:47:59] [%emt 00:16:09]} 16.f5 {[%clk 00:36:42] [%emt 00:21:11]} 
16...Bd7 {[%clk 00:47:39] [%emt 00:00:51]} 17.Rhe1 {[%clk 00:36:15] [%emt
00:00:57]} 17...Rae8 {[%clk 00:46:14] [%emt 00:01:55]} 18.g4 {[%clk 00:26:34]
[%emt 00:10:11]} 18...Qd8 {[%clk 00:45:27] [%emt 00:01:17]} 19.Qg2 {[%clk
00:12:52] [%emt 00:14:12]} 19...Ng8 {[%clk 00:32:28] [%emt 00:13:29]} 20.Qh3 
{[%clk 00:10:41] [%emt 00:02:40]} 20...Bc8 {[%clk 00:22:38] [%emt 00:10:21]} 
21.Qh5 {[%clk 00:08:07] [%emt 00:03:04]} 21...Nf6 {[%clk 00:20:02] [%emt
00:03:07]} 22.Qh3 {[%clk 00:06:41] [%emt 00:01:56]} 22...Ng8 {[%clk 00:18:45]
[%emt 00:01:47]} 23.f4 {[%clk 00:06:36] [%emt 00:00:35]} 23...Bb4 {[%clk
00:18:46] [%emt 00:00:29]} 24.Bc2 {[%clk 00:04:37] [%emt 00:02:29]} 24...Bxc3 
{[%clk 00:16:09] [%emt 00:03:07]} 25.bxc3 {[%clk 00:04:52] [%emt 00:00:14]} 
25...Nf6 {[%clk 00:16:02] [%emt 00:00:38]} 26.g5 {[%clk 00:03:44] [%emt
00:01:38]} 26...Ne4 {[%clk 00:13:16] [%emt 00:03:16]} 27.Bxe4 {[%clk 00:03:14]
[%emt 00:00:59]} 27...dxe4 {[%clk 00:13:31] [%emt 00:00:16]} 28.Nxf7+ {[%clk
00:02:43] [%emt 00:01:00]} 28...Rxf7 {[%clk 00:13:36] [%emt 00:00:26]} 29.g6 
{[%clk 00:03:09] [%emt 00:00:04]} 29...h6 {[%clk 00:13:30] [%emt 00:00:36]} 
30.gxf7 {[%clk 00:03:35] [%emt 00:00:04]} 30...Re7 {[%clk 00:07:40] [%emt
00:06:20]} 31.Qh5 {[%clk 00:03:03] [%emt 00:01:02]} 31...Qf8 {[%clk 00:07:59]
[%emt 00:00:10]} 32.f6 {[%clk 00:02:47] [%emt 00:00:46]} 32...Rxf7 {[%clk
00:07:46] [%emt 00:00:44]} 33.fxg7+ {[%clk 00:02:47] [%emt 00:00:29]} 33...Kxg7 
{[%clk 00:07:33] [%emt 00:00:43]} 34.Rg1+ {[%clk 00:01:43] [%emt 00:01:33]} 
34...Kh7 {[%clk 00:07:53] [%emt 00:00:11]} 35.d5 {[%clk 00:01:20] [%emt
00:00:53]} 35...cxd5 {[%clk 00:05:18] [%emt 00:03:06]} 36.Rxd5 {[%clk 00:01:23]
[%emt 00:00:26]} 36...Rf6 {[%clk 00:03:48] [%emt 00:02:00]} 37.Qe5 {[%clk
00:00:50] [%emt 00:01:04]} 37...Rxf4 {[%clk 00:03:23] [%emt 00:00:55]} 38.Rd8 
{[%clk 00:00:40] [%emt 00:00:40]} 38...Rf1+ {[%clk 00:02:18] [%emt 00:01:34]} 
39.Rxf1 {[%clk 00:01:07] [%emt 00:00:03]} 39...Qxf1+ {[%clk 00:02:40] [%emt
00:00:09]} 40.Kb2 {[%clk 00:01:24] [%emt 00:00:12]} 40...Bf5 {[%emt 00:02:37]} 
41.Rd6 {[%clk 00:01:26] [%emt 00:00:26]} 41...Qg2+ {[%clk 00:49:24] [%emt
00:01:42]} 42.Ka3 {[%clk 00:51:17] [%emt 00:00:39]} 42...Qg5 {[%clk 00:47:59]
[%emt 00:01:54]} 43.Rd1 {[%clk 00:49:30] [%emt 00:02:17]} 43...Qg6 {[%clk
00:44:32] [%emt 00:03:58]} 44.Rd5 {[%clk 00:48:09] [%emt 00:01:51]} 1-0

[Event "FIDE Grand Swiss 2023"]
[Site "Villa Marina, Douglas, Isle of Man"]
[Date "2023.10.28"]
[Round "4.31"]
[White "Yakubboev, Nodirbek"]
[Black "Amin, Bassem"]
[Result "1-0"]
[WhiteElo "2616"]
[BlackElo "2680"]
[EventDate "2023.10.25"]
[ECO "D91"]
[PlyCount "71"]
[BlackFideId "10601457"]
[TimeControl "40/100 + 20/50 + 15 + 30s/move"]
[WhiteFideId "14203987"]

1.d4 {[%clk 01:40:43] [%emt 00:00:06]} 1...Nf6 {[%clk 01:40:21] [%emt 00:00:49]} 
2.c4 {[%clk 01:41:05] [%emt 00:00:10]} 2...g6 {[%clk 01:40:47] [%emt 00:00:05]} 
3.Nc3 {[%clk 01:41:12] [%emt 00:00:23]} 3...d5 {[%clk 01:40:38] [%emt 00:00:39]} 
4.Nf3 {[%clk 01:40:42] [%emt 00:00:59]} 4...Bg7 {[%clk 01:40:58] [%emt
00:00:10]} 5.Bg5 {[%clk 01:41:05] [%emt 00:00:07]} 5...Ne4 {[%clk 01:40:27]
[%emt 00:01:02]} 6.Bf4 {[%clk 01:40:50] [%emt 00:00:44]} 6...Nxc3 {[%clk
01:34:52] [%emt 00:06:05]} 7.bxc3 {[%clk 01:39:15] [%emt 00:02:05]} 7...c5 
{[%clk 01:34:15] [%emt 00:01:07]} 8.e3 {[%clk 01:35:16] [%emt 00:04:29]} 
8...O-O {[%clk 01:32:55] [%emt 00:01:49]} 9.cxd5 {[%clk 01:35:11] [%emt
00:00:36]} 9...cxd4 {[%clk 01:29:46] [%emt 00:03:38]} 10.cxd4 {[%clk 01:35:13]
[%emt 00:00:28]} 10...Qxd5 {[%clk 01:30:09] [%emt 00:00:07]} 11.Be2 {[%clk
01:35:08] [%emt 00:00:36]} 11...Qa5+ {[%clk 01:30:03] [%emt 00:00:36]} 12.Qd2 
{[%clk 01:35:32] [%emt 00:00:03]} 12...Nc6 {[%clk 01:28:59] [%emt 00:01:36]} 
13.Qxa5 {[%clk 01:35:56] [%emt 00:00:06]} 13...Nxa5 {[%clk 01:29:27] [%emt
00:00:03]} 14.h4 {[%clk 01:36:20] [%emt 00:00:06]} 14...Be6 {[%clk 01:18:29]
[%emt 00:11:28]} 15.h5 {[%clk 01:36:14] [%emt 00:00:36]} 15...Rac8 {[%clk
01:17:14] [%emt 00:01:45]} 16.h6 {[%clk 01:14:47] [%emt 00:21:56]} 16...Bf6 
{[%clk 01:15:00] [%emt 00:02:44]} 17.Bd3 {[%clk 00:43:44] [%emt 00:31:33]} 
17...Rc3 {[%clk 01:03:55] [%emt 00:11:36]} 18.Ke2 {[%clk 00:41:50] [%emt
00:02:24]} 18...Rfc8 {[%clk 01:04:01] [%emt 00:00:23]} 19.e4 {[%clk 00:39:42]
[%emt 00:02:38]} 19...Bc4 {[%clk 00:59:50] [%emt 00:04:42]} 20.Bxc4 {[%clk
00:33:30] [%emt 00:06:42]} 20...Rc2+ {[%clk 00:59:25] [%emt 00:00:55]} 21.Kd3 
{[%clk 00:33:19] [%emt 00:00:41]} 21...R8xc4 {[%clk 00:54:43] [%emt 00:05:12]} 
22.Bd2 {[%clk 00:33:33] [%emt 00:00:16]} 22...Nc6 {[%clk 00:53:45] [%emt
00:01:28]} 23.e5 {[%clk 00:32:58] [%emt 00:01:04]} 23...Bh8 {[%clk 00:53:44]
[%emt 00:00:32]} 24.Rhc1 {[%clk 00:28:05] [%emt 00:05:23]} 24...Nb4+ {[%clk
00:39:23] [%emt 00:14:51]} 25.Ke4 {[%clk 00:23:03] [%emt 00:05:32]} 25...Rxc1 
{[%clk 00:14:57] [%emt 00:24:57]} 26.Rxc1 {[%clk 00:22:22] [%emt 00:01:10]} 
26...Rxc1 {[%clk 00:15:19] [%emt 00:00:08]} 27.Bxc1 {[%clk 00:22:48] [%emt
00:00:04]} 27...Nxa2 {[%clk 00:07:46] [%emt 00:08:03]} 28.Bd2 {[%clk 00:19:28]
[%emt 00:03:50]} 28...e6 {[%clk 00:07:36] [%emt 00:00:40]} 29.g4 {[%clk
00:15:40] [%emt 00:04:19]} 29...f6 {[%clk 00:05:10] [%emt 00:02:55]} 30.g5 
{[%clk 00:15:37] [%emt 00:00:32]} 30...fxe5 {[%clk 00:05:27] [%emt 00:00:14]} 
31.dxe5 {[%clk 00:15:57] [%emt 00:00:10]} 31...b5 {[%clk 00:03:54] [%emt
00:02:03]} 32.Nd4 {[%clk 00:16:20] [%emt 00:00:07]} 32...b4 {[%clk 00:04:16]
[%emt 00:00:08]} 33.f4 {[%clk 00:15:51] [%emt 00:00:58]} 33...Kf7 {[%clk
00:01:16] [%emt 00:03:31]} 34.Kd3 {[%clk 00:16:11] [%emt 00:00:10]} 34...Ke8 
{[%clk 00:01:40] [%emt 00:00:06]} 35.Kc4 {[%clk 00:14:39] [%emt 00:02:02]} 
35...Kd7 {[%clk 00:01:47] [%emt 00:00:24]} 36.Bxb4 {[%clk 00:14:44] [%emt
00:00:25]} 1-0